bitfinex-derivatives/quotes_ETHF0:USTF0_20240818
["timestamp","ask_amount","ask_price","bid_price","bid_amount"]
[1723950440189,4.96628,2620.8,2619.9,3.78024]
[1723950440392,0.57229,2620.7,2620.0,0.3425]
[1723950440598,4.394,2620.5,2619.9,3.2078]
[1723950440788,7.6018,2620.1,2619.1,3.2078]
[1723950441094,7.6018,2620.1,2619.9,0.00328169]
[1723950441095,5.32054,2620.0,2619.9,0.00328169]
[1723950441396,4.7481,2620.0,2619.9,0.00328169]
[1723950441703,4.7481,2620.0,2619.4,0.00572432]
[1723950441704,0.57255,2619.6,2619.4,0.00572432]
[1723950441891,0.57255,2619.5,2619.4,0.00572432]
[1723950442086,4.96653,2619.6,2619.4,0.00572432]
[1723950442494,4.96654,2619.6,2619.4,0.00572432]
[1723950442691,4.39015,2619.5,2619.4,0.01030067]
[1723950442992,9.394,2619.6,2619.4,0.01030067]
[1723950442993,4.394,2619.6,2619.4,0.01030067]
[1723950443184,0.57255,2619.5,2619.4,0.01030067]
[1723950443692,4.394,2619.6,2619.4,0.01030067]
[1723950444099,4.7481,2620.0,2619.4,3.82790067]
[1723950444404,4.7481,2620.0,2619.4,0.01030067]
[1723950444405,0.5725,2619.8,2619.4,0.01030067]
[1723950444602,7.9559,2620.0,2619.4,0.01030067]
[1723950444799,4.7481,2620.0,2619.4,0.01030067]
[1723950444987,0.57254,2619.6,2619.4,0.01030067]
[1723950445187,0.57255,2619.5,2619.4,0.01030067]
[1723950445906,4.96653,2619.6,2619.4,0.01030067]
[1723950446295,0.57255,2619.5,2619.4,0.01030067]
[1723950446492,4.96653,2619.6,2619.4,0.01030067]
[1723950446700,4.394,2619.6,2619.4,0.01030067]
[1723950447100,3.2078,2619.7,2619.4,0.01030067]
[1723950447502,5.32055,2620.0,2619.4,3.82790067]
[1723950447503,4.7481,2620.0,2619.4,3.82790067]
[1723950447798,4.7481,2620.0,2619.4,0.01030067]
[1723950447998,5.32054,2620.0,2619.4,0.01030067]
[1723950448188,4.7481,2620.0,2619.4,0.01030067]
[1723950448498,4.7481,2620.0,2619.4,3.79066067]
[1723950448801,4.7481,2620.0,2619.4,3.21810067]
[1723950449500,4.7481,2620.0,2619.5,0.57253]
[1723950449501,0.3541,2620.0,2619.5,0.57253]
[1723950449702,0.00572432,2620.2,2619.7,3.2078]
[1723950449996,0.00572432,2620.2,2619.5,7.85935428]
[1723950449997,0.38302432,2620.2,2619.6,3.2078]
[1723950450989,0.57242,2620.1,2619.6,3.2078]
[1723950451190,0.95542432,2620.2,2619.6,3.2078]
[1723950451497,0.00572432,2620.2,2619.7,7.81252193]
[1723950452395,0.00572432,2620.2,2619.9,3.2078]
[1723950452801,0.00572432,2620.2,2619.9,7.0246]
[1723950453105,0.00572432,2620.2,2620.0,3.8168]
[1723950453610,0.00572432,2620.2,2620.1,3.8168]
[1723950454197,0.00572432,2620.2,2619.9,0.3633]
[1723950454612,0.00572432,2620.2,2619.9,4.1801]
[1723950455003,0.00572432,2620.2,2620.0,3.8168]
[1723950456303,0.00572432,2620.2,2620.1,15.24492898]
[1723950456493,0.00572432,2620.2,2620.1,11.42812898]
[1723950456694,0.00572432,2620.2,2620.1,7.0246]
[1723950457513,0.00572432,2620.2,2620.1,12.0246]
[1723950458018,0.00572432,2620.2,2620.1,7.0246]
[1723950459903,0.00572432,2620.2,2619.9,0.3633]
[1723950460103,0.00572432,2620.2,2619.6,3.2078]
[1723950460305,0.57247,2619.9,2619.6,3.2078]
[1723950460497,0.3622,2620.1,2619.7,8.1062406]
[1723950461008,0.57248,2619.8,2619.7,8.1062406]
[1723950461207,0.3622,2620.1,2619.7,8.1062406]
[1723950461606,0.5725,2619.7,2619.6,3.2078]
[1723950462505,0.57249,2619.8,2619.6,3.2078]
[1723950462904,0.5725,2619.7,2619.6,3.2078]
[1723950463610,0.57249,2619.8,2619.6,3.2078]
[1723950464298,4.394,2620.0,2619.6,7.0254]
[1723950464499,0.57244,2620.0,2619.6,3.2078]
[1723950464807,0.3622,2620.1,2619.6,3.2078]
[1723950464808,0.57246,2619.9,2619.6,3.2078]
[1723950465012,0.3622,2620.1,2619.6,3.2078]
[1723950465217,0.93463,2620.1,2619.6,3.2078]
[1723950465404,0.93463,2620.1,2619.5,0.57255]
[1723950465710,0.93463,2620.1,2619.5,3.2078]
[1723950465912,4.394,2619.9,2619.5,3.2078]
[1723950466104,0.5725,2619.8,2619.5,3.2078]
[1723950466302,0.5725,2619.7,2619.5,3.2078]
[1723950466508,0.57249,2619.8,2619.5,3.2078]
[1723950466897,0.57251,2619.7,2619.5,3.2078]
[1723950467101,0.57249,2619.8,2619.5,3.2078]
[1723950467506,0.57248,2619.8,2619.5,3.2078]
[1723950467705,4.394,2619.9,2619.4,0.01030067]
[1723950467706,3.2078,2619.7,2619.4,0.01030067]
[1723950468211,0.57255,2619.5,2619.4,0.01030067]
[1723950469503,4.96655,2619.5,2619.4,0.01030067]
[1723950470005,8.78415,2619.5,2619.4,0.01030067]
[1723950470314,0.57263,2619.2,2618.7,3.2078]
[1723950470703,0.57263,2619.2,2618.8,7.82047138]
[1723950471113,0.57263,2619.2,2618.8,7.82344351]
[1723950471314,3.5573,2619.4,2618.8,7.82344351]
[1723950471315,0.57264,2619.1,2618.8,7.82344351]
[1723950471515,0.92208,2619.4,2618.8,7.82344351]
[1723950472022,0.3495,2619.4,2618.8,8.17414351]
[1723950472913,4.394,2619.5,2619.0,3.2078]
[1723950473222,4.394,2619.5,2619.1,0.3796]
[1723950473613,3.2078,2619.8,2619.2,8.02603343]
[1723950473918,4.394,2619.9,2619.2,12.00590309]
[1723950474116,4.394,2619.9,2619.2,15.21370309]
[1723950474513,4.394,2619.9,2619.3,0.57259]
[1723950474907,4.394,2619.9,2619.4,8.50230215]
[1723950475108,4.394,2619.9,2619.5,3.2078]
[1723950475510,4.96646,2619.9,2619.5,3.2078]
[1723950476312,4.394,2619.9,2619.5,3.2078]
[1723950476714,4.96646,2619.9,2619.5,3.2078]
[1723950477318,4.394,2619.9,2619.5,3.2078]
[1723950477524,4.394,2619.9,2619.2,3.2078]
[1723950477813,4.394,2619.9,2619.1,0.3796]
[1723950477814,0.57255,2619.5,2619.1,0.3796]
[1723950478014,3.2078,2619.8,2619.3,8.04798903]
[1723950478216,0.57254,2619.6,2619.1,0.3796]
[1723950479608,0.57255,2619.5,2619.1,0.3796]
[1723950479809,0.57257,2619.4,2619.1,0.3796]
[1723950480028,0.92887,2619.4,2619.1,0.3796]
[1723950480212,0.3563,2619.4,2619.1,0.3796]
[1723950480412,4.394,2619.6,2619.1,4.1972]
[1723950480717,4.394,2619.6,2619.1,0.3796]
[1723950481524,3.2078,2619.8,2619.2,8.11865881]
[1723950482115,3.2078,2619.8,2619.2,8.69126881]
[1723950482420,3.78028,2619.8,2619.2,8.11865881]
[1723950482630,3.2078,2619.8,2619.2,8.11865881]
[1723950483125,4.394,2619.9,2619.3,3.2078]
[1723950483327,4.394,2619.9,2619.4,0.57256]
[1723950483515,0.3736,2620.1,2619.4,12.87413495]
[1723950484116,0.00572432,2620.2,2619.6,3.2078]
[1723950484427,0.00572432,2620.2,2619.7,0.376]
[1723950484615,0.00572432,2620.2,2619.8,0.3634]
[1723950486519,0.00572432,2620.2,2619.9,8.24566568]
[1723950486713,0.00572432,2620.2,2619.9,16.28330776]
[1723950486910,0.00572432,2620.2,2620.0,3.8168]
[1723950487325,0.00572432,2620.2,2619.8,3.5712]
[1723950487326,0.00572432,2620.2,2620.1,3.8168]
[1723950488714,0.00572432,2620.2,2619.8,3.5712]
[1723950488913,0.00572432,2620.2,2619.8,0.3634]
[1723950489120,0.00572432,2620.2,2619.9,8.12150458]
[1723950490127,0.00572432,2620.2,2619.8,0.3634]
[1723950490520,0.57813432,2620.2,2619.8,0.3634]
[1723950490722,0.00572432,2620.2,2619.8,0.3634]
[1723950492039,0.00572432,2620.2,2620.0,3.2078]
[1723950496139,0.57811432,2620.2,2620.0,3.2078]
[1723950496945,0.57811432,2620.2,2619.6,3.2078]
[1723950496946,4.39972432,2620.2,2619.6,3.2078]
[1723950497140,0.57248,2619.9,2619.6,3.2078]
[1723950497337,0.93649,2619.8,2619.6,3.2078]
[1723950499162,0.3795,2620.1,2619.6,3.2078]
[1723950499343,0.3795,2620.1,2619.5,3.2078]
[1723950499543,5.33282432,2620.2,2619.5,3.2078]
[1723950499750,4.76042432,2620.2,2619.6,0.3674]
[1723950501246,4.76042432,2620.2,2619.6,0.93992]
[1723950501454,4.76042432,2620.2,2619.6,0.3674]
[1723950501651,0.00572432,2620.2,2619.7,8.02724442]
[1723950501846,0.00572432,2620.2,2619.8,3.2078]
[1723950502354,0.00572432,2620.2,2619.7,16.85110732]
[1723950502355,0.00572432,2620.2,2619.9,12.09831732]
[1723950502649,0.00572432,2620.2,2619.7,0.936]
[1723950502650,0.00572432,2620.2,2619.8,8.21821394]
[1723950503153,0.00572432,2620.2,2619.5,3.2078]
[1723950503154,0.57242,2620.1,2619.5,3.2078]
[1723950503345,0.3733,2620.0,2619.5,3.2078]
[1723950503546,0.3733,2620.0,2619.6,8.21821394]
[1723950504548,4.39972432,2620.2,2619.6,8.21821394]
[1723950504745,0.57244,2620.0,2619.6,8.21821394]
[1723950505349,0.94572,2620.1,2619.6,8.21821394]
[1723950505551,4.39972432,2620.2,2619.6,8.21821394]
[1723950505753,0.57245,2620.0,2619.6,8.21821394]
[1723950506053,3.299,2620.0,2619.6,8.21821394]
[1723950506951,0.57812432,2620.2,2619.6,12.03501394]
[1723950506952,0.00572432,2620.2,2619.6,12.03501394]
[1723950507268,0.00572432,2620.2,2619.8,3.2078]
[1723950507552,0.00572432,2620.2,2619.9,7.949396]
[1723950507853,0.00572432,2620.2,2620.0,0.3487]
[1723950509355,0.00572432,2620.2,2620.0,4.1655]
[1723950509953,0.00572432,2620.2,2620.0,0.3487]
[1723950511243,3.299,2620.1,2619.5,4.17847069]
[1723950511557,3.299,2619.8,2619.2,0.3766]
[1723950512054,3.87149,2619.8,2619.5,8.23854071]
[1723950512254,3.87149,2619.8,2619.3,8.23854071]
[1723950512446,3.87149,2619.8,2619.2,0.3766]
[1723950512641,3.87149,2619.8,2619.5,8.23854071]
[1723950512852,3.87149,2619.8,2619.4,8.06431663]
[1723950513159,3.87149,2619.8,2619.2,0.3766]
[1723950513451,3.87149,2619.8,2619.5,8.06431663]
[1723950513648,3.299,2619.8,2619.5,8.06431663]
[1723950513963,3.299,2619.8,2618.9,1.45600603]
[1723950513964,6.5068,2619.8,2618.9,1.45600603]
[1723950514149,0.57247,2619.9,2618.8,0.00297213]
[1723950514150,6.5068,2619.5,2618.8,0.00297213]
[1723950514449,0.57265,2619.1,2619.0,7.90456643]
[1723950514857,6.5068,2619.5,2618.8,0.00297213]
[1723950515152,0.57264,2619.1,2619.0,7.84743916]
[1723950515348,0.57263,2619.1,2619.0,7.84743916]
[1723950515543,0.57268,2618.9,2618.8,0.00297213]
[1723950515947,0.3482,2619.0,2618.8,7.99122644]
[1723950516150,3.299,2619.1,2618.8,7.99122644]
[1723950516451,3.87159,2619.3,2618.8,7.99122644]
[1723950516751,3.556,2619.5,2618.8,0.00297213]
[1723950516752,3.299,2619.0,2618.8,0.00297213]
[1723950516960,3.2078,2618.9,2618.8,0.00297213]
[1723950517360,3.299,2619.0,2618.8,0.00297213]
[1723950517857,3.299,2619.0,2618.9,8.24229966]
[1723950518058,3.299,2619.0,2618.9,8.60279966]
[1723950518848,3.6739,2619.3,2618.9,8.60279966]
[1723950519551,3.299,2619.3,2618.9,8.60279966]
[1723950519862,4.97155,2619.5,2618.9,8.60279966]
[1723950520552,4.399,2619.5,2618.9,8.60279966]
[1723950521259,4.97155,2619.5,2618.9,8.60279966]
[1723950522048,4.399,2619.0,2618.9,8.60279966]
[1723950522352,4.399,2619.0,2618.8,0.00297213]
[1723950522353,4.97167,2619.0,2618.8,0.00297213]
[1723950522553,0.93138,2618.9,2618.8,0.00297213]
[1723950522947,0.57276,2618.6,2618.0,3.2078]
[1723950523147,4.97177,2618.5,2617.7,1.34399928]
[1723950523348,0.57279,2618.4,2617.7,0.7444]
[1723950523552,4.399,2618.5,2617.7,8.87649322]
[1723950523860,4.403799,2618.5,2617.8,4.24697302]
[1723950524049,0.00572432,2618.4,2617.8,4.24697302]
[1723950524252,0.00572432,2618.4,2617.9,11.00172809]
[1723950524448,0.00572432,2618.4,2618.2,3.2078]
[1723950524646,0.00572432,2618.4,2618.3,0.3767]
[1723950524853,0.00572432,2618.4,2618.3,16.42304345]
[1723950525059,0.00572432,2618.4,2618.3,21.42304345]
[1723950525355,0.00572432,2618.4,2618.3,24.63084345]
[1723950525859,0.00572432,2618.4,2618.3,21.42304345]
[1723950526562,0.00572432,2618.4,2618.3,21.99585345]
[1723950526759,0.004799,2618.5,2618.3,21.99585345]
[1723950526954,0.004799,2618.5,2618.4,4.73829]
[1723950527155,4.399,2619.2,2618.4,4.73829]
[1723950527354,4.399,2619.2,2618.4,12.62516272]
[1723950527557,3.5688,2619.6,2618.8,0.5727]
[1723950527558,4.399,2619.6,2618.8,0.5727]
[1723950527860,0.00572432,2619.5,2618.9,8.01657245]
[1723950528059,0.01055334,2619.5,2618.9,12.17776703]
[1723950530163,0.01055334,2619.5,2618.9,8.01657245]
[1723950530868,0.58310334,2619.5,2618.9,8.01657245]
[1723950531354,0.3443,2619.4,2618.9,8.01657245]
[1723950531562,0.01055334,2619.5,2618.9,8.01657245]
[1723950532456,0.01055334,2619.5,2619.0,4.14415]
[1723950532663,0.01055334,2619.5,2619.3,3.2078]
[1723950532852,0.01055334,2619.5,2619.1,8.53759264]
[1723950533164,4.97163,2619.2,2618.9,0.00572432]
[1723950533353,0.57264,2619.1,2618.9,0.00572432]
[1723950533558,4.399,2619.2,2618.9,0.00572432]
[1723950533861,0.01055334,2619.5,2618.9,3.82412432]
[1723950534067,0.01055334,2619.5,2618.9,0.00572432]
[1723950534665,0.01055334,2619.5,2618.9,0.36942432]
[1723950534970,0.01055334,2619.5,2618.9,0.75482432]
[1723950535471,0.01055334,2619.5,2619.0,8.04681933]
[1723950535654,4.40955334,2619.5,2619.0,11.25461933]
[1723950535855,4.399,2619.2,2619.0,8.04681933]
[1723950536261,4.399,2619.2,2618.9,0.00572432]
[1723950536869,3.2078,2619.3,2618.9,0.00572432]
[1723950537559,0.3527,2619.4,2618.9,0.00572432]
[1723950538463,4.40955334,2619.5,2618.9,0.00572432]
[1723950538861,4.40955334,2619.5,2619.0,3.2078]
[1723950539170,4.40955334,2619.5,2619.0,0.3699]
[1723950539472,0.01055334,2619.5,2619.1,8.06251417]
[1723950540775,0.01055334,2619.5,2619.0,7.85806814]
[1723950541079,0.39595334,2619.5,2619.2,8.09052753]
[1723950541270,0.39595334,2619.5,2619.1,8.09052753]
[1723950541473,0.96850334,2619.5,2619.1,8.09052753]
[1723950541680,0.96850334,2619.5,2619.0,8.09052753]
[1723950541681,0.57257,2619.4,2619.3,8.09052753]
[1723950541878,3.299,2619.4,2619.2,8.24099965]
[1723950542170,3.87159,2619.4,2618.9,0.00572432]
[1723950542469,3.299,2619.4,2618.9,0.00572432]
[1723950543359,3.87159,2619.4,2618.9,0.00572432]
[1723950544071,0.57259,2619.3,2618.9,0.00572432]
[1723950544475,0.57276,2618.6,2617.7,6.12348211]
[1723950544664,5.5726,2619.3,2617.7,3.21147004]
[1723950544665,3.299,2618.4,2617.7,3.21147004]
[1723950544860,3.299,2618.4,2618.2,7.83019048]
[1723950545060,3.299,2618.4,2617.8,7.83019048]
[1723950545061,0.57287,2618.0,2617.8,7.83019048]
[1723950545267,3.87186,2618.1,2617.7,3.21147004]
[1723950545468,3.299,2618.1,2618.0,7.83019048]
[1723950545678,3.299,2618.1,2617.9,7.83019048]
[1723950545873,3.299,2618.1,2617.7,3.21147004]
[1723950546068,0.00572432,2618.2,2618.0,8.01416557]
[1723950546377,0.57857432,2618.2,2617.9,8.01416557]
[1723950546575,0.00572432,2618.2,2617.7,3.21147004]
[1723950546876,0.57287,2618.1,2617.9,7.80709073]
[1723950547083,0.57287,2618.0,2617.9,7.80709073]
[1723950547273,0.57287,2618.0,2617.7,3.21147004]
[1723950547470,3.87187,2618.0,2617.9,7.80709073]
[1723950547775,3.87187,2618.0,2617.7,3.21147004]
[1723950547776,0.57292,2617.8,2617.7,0.00367004]
[1723950547975,3.299,2618.0,2616.7,0.9738107]
[1723950547976,0.57309,2617.1,2616.7,0.9738107]
[1723950548173,0.57309,2617.1,2616.7,0.00314001]
[1723950548374,0.5731,2617.0,2616.8,8.12190529]
[1723950548574,0.93714,2617.7,2616.9,3.2078]
[1723950548575,0.57299,2617.5,2616.9,3.2078]
[1723950548880,0.00435565,2617.5,2617.0,8.02960624]
[1723950549377,0.00435565,2617.5,2617.1,4.39368374]
[1723950549575,0.00435565,2617.5,2617.0,8.02960624]
[1723950549770,0.00435565,2617.5,2617.2,11.23740624]
[1723950550067,0.00572432,2618.2,2617.3,8.60628311]
[1723950550277,0.00572432,2618.2,2617.9,3.2078]
[1723950550469,0.00572432,2618.2,2618.0,0.3562]
[1723950550672,0.00572432,2618.2,2618.0,8.58101579]
[1723950550875,0.00572432,2618.2,2618.0,12.40021579]
[1723950551077,0.00572432,2618.2,2618.0,8.22481579]
[1723950551078,0.01022362,2618.2,2618.0,8.22481579]
[1723950551280,0.01022362,2618.2,2616.7,2.42981673]
[1723950551281,7.027,2618.1,2617.3,0.3562]
[1723950551469,5.01022362,2618.2,2617.3,0.3562]
[1723950551470,4.97497,2617.6,2617.3,0.3562]
[1723950551779,4.97497,2617.6,2617.4,7.84114863]
[1723950551780,0.57298,2617.5,2617.4,7.84114863]
[1723950551968,4.39378,2617.5,2617.4,7.84114863]
[1723950552169,0.57301,2617.4,2617.0,0.3562]
[1723950552369,4.402,2617.6,2617.0,0.3562]
[1723950552677,0.57302,2617.4,2617.1,7.85245165]
[1723950552978,4.97498,2617.6,2617.1,7.85245165]
[1723950553374,4.97498,2617.6,2617.2,3.2078]
[1723950553570,7.9699,2618.0,2617.2,7.20621141]
[1723950553779,4.7621,2618.0,2617.3,8.06038581]
[1723950554078,5.33499,2618.0,2617.3,8.06038581]
[1723950554280,4.402,2618.0,2617.3,8.06038581]
[1723950554481,0.01022362,2618.2,2617.8,0.57292]
[1723950554684,0.01022362,2618.2,2617.9,0.3515]
[1723950554875,0.58306362,2618.2,2617.9,8.29035487]
[1723950555080,0.57285,2618.1,2617.9,7.93885487]
[1723950555376,0.01022362,2618.2,2617.5,0.92448]
[1723950555580,0.01022362,2618.2,2618.0,7.93885487]
[1723950555783,0.01022362,2618.2,2617.9,3.2078]
[1723950556081,0.01022362,2618.2,2618.0,8.24946608]
[1723950557270,3.82942362,2618.2,2618.0,8.24946608]
[1723950557590,0.01022362,2618.2,2618.0,8.24946608]
[1723950559082,0.01022362,2618.2,2618.0,12.06866608]
[1723950559384,0.01022362,2618.2,2618.0,8.24946608]
[1723950560383,0.01022362,2618.2,2618.0,12.06866608]
[1723950560579,0.01022362,2618.2,2618.0,12.41786608]
[1723950561489,0.01022362,2618.2,2618.1,4.39205]
[1723950561676,0.01022362,2618.2,2618.1,9.05285275]
[1723950561880,0.01022362,2618.2,2618.1,21.94099657]
[1723950562786,3.2078,2618.8,2618.1,12.28018382]
[1723950562986,4.7816,2619.1,2618.3,3.78061]
[1723950563188,4.7816,2619.1,2618.4,0.94608]
[1723950563490,5.35425,2619.1,2618.4,8.52200593]
[1723950563691,5.35425,2619.1,2618.5,0.57847432]
[1723950563692,0.00572432,2619.0,2618.5,0.57847432]
[1723950563988,0.00572432,2619.0,2618.6,7.85391478]
[1723950564686,0.00572432,2619.0,2618.6,14.88011478]
[1723950564887,0.00572432,2619.0,2618.9,3.2078]
[1723950565189,0.00572432,2619.0,2618.9,3.21212914]
[1723950565375,0.00572432,2619.0,2618.9,15.45320279]
[1723950565574,0.00572432,2619.0,2618.9,20.45320279]
[1723950565777,0.0048474,2619.1,2619.0,0.57265]
[1723950565976,0.0048474,2619.1,2619.0,4.39105]
[1723950566177,0.0048474,2619.1,2619.0,21.75022778]
[1723950571896,0.0048474,2619.1,2619.0,22.14092778]
[1723950572390,0.00572432,2619.3,2619.2,0.57261]
[1723950572592,0.3656,2619.9,2619.5,0.57253]
[1723950572798,0.3656,2619.9,2619.6,0.3907]
[1723950572986,0.3656,2619.9,2619.6,8.99699708]
[1723950573297,0.00485392,2619.9,2619.6,8.99699708]
[1723950574394,0.00485392,2619.9,2619.7,0.5725]
[1723950574782,0.00485392,2619.9,2619.8,8.05282835]
[1723950575289,0.00485392,2619.9,2619.6,0.96321]
[1723950575290,0.00485392,2619.9,2619.7,8.81885884]
[1723950575497,0.00485392,2619.9,2619.7,0.5725]
[1723950575693,0.00485392,2619.9,2619.8,8.24635884]
[1723950576088,0.00485392,2619.9,2619.8,12.06315884]
[1723950581092,0.00485392,2619.9,2619.8,12.63563884]
[1723950581395,0.00485392,2619.9,2619.8,8.24635884]
[1723950581903,0.00485392,2619.9,2619.7,8.39536894]
[1723950582088,0.00485392,2619.9,2619.7,0.5725]
[1723950582287,0.00485392,2619.9,2619.8,7.881117]
[1723950582495,0.00485392,2619.9,2619.8,0.57248]
[1723950582794,0.00485392,2619.9,2619.8,11.697917]
[1723950582986,0.00485392,2619.9,2619.8,7.881117]
[1723950583192,0.00485392,2619.9,2619.7,8.453607]
[1723950583193,0.00485392,2619.9,2619.7,0.57249]
[1723950583394,0.00485392,2619.9,2619.8,7.98879758]
[1723950585101,0.00485392,2619.9,2619.8,12.37807758]
[1723950585303,0.00485392,2619.9,2619.8,8.56127758]
[1723950586900,0.00023595,2619.9,2619.8,7.98879758]
[1723950589399,0.00023595,2619.9,2619.8,16.77941521]
[1723950589807,0.00023595,2619.9,2619.8,16.20693521]
[1723950591003,0.00023595,2619.9,2619.8,7.98879758]
[1723950591401,0.00023595,2619.9,2619.7,8.50823052]
[1723950591602,0.00023595,2619.9,2619.8,7.93574052]
[1723950591911,0.00023595,2619.9,2619.7,4.97561015]
[1723950592219,0.00023595,2619.9,2619.8,8.77626351]
[1723950592999,0.00023595,2619.9,2619.8,8.20378351]
[1723950594206,0.00023595,2619.9,2619.8,8.77626351]
[1723950594611,0.00023595,2619.9,2619.8,0.57248]
[1723950595007,0.00023595,2619.9,2619.8,8.06705475]
[1723950595200,3.81703595,2619.9,2619.8,8.06705475]
[1723950595413,3.81703595,2619.9,2619.7,8.63955475]
[1723950595713,0.00023595,2619.9,2619.7,0.5725]
[1723950595904,0.00023595,2619.9,2619.8,4.182128]
[1723950596307,3.81703595,2619.9,2619.8,4.182128]
[1723950597006,3.81703595,2619.9,2619.3,3.5729]
[1723950597209,0.00023595,2619.9,2619.4,0.57257]
[1723950597415,0.00023595,2619.9,2619.6,7.84108544]
[1723950597714,0.57270595,2619.9,2619.5,7.84108544]
[1723950597915,0.57270595,2619.9,2619.7,7.84108544]
[1723950597916,0.3867,2619.8,2619.7,7.84108544]
[1723950598214,4.2043,2619.8,2619.4,8.15070141]
[1723950598415,0.7469,2619.8,2619.4,0.57257]
[1723950598613,0.7469,2619.8,2619.6,8.15070141]
[1723950598918,0.00023595,2619.9,2619.2,3.2078]
[1723950599114,0.00023595,2619.9,2619.5,3.2078]
[1723950599419,0.00023595,2619.9,2619.6,0.57251]
[1723950599728,0.00023595,2619.9,2619.7,7.87958678]
[1723950600112,0.00023595,2619.9,2619.7,8.45207678]
[1723950600612,0.00023595,2619.9,2619.7,7.87958678]
[1723950601215,3.8168,2619.8,2619.2,3.78041]
[1723950601416,0.3885,2619.7,2619.2,3.78041]
[1723950601614,0.3885,2619.7,2619.2,11.9198066]
[1723950602420,0.00023595,2619.9,2619.3,4.19684185]
[1723950602805,0.00023595,2619.9,2619.4,7.80922078]
[1723950603013,0.00023595,2619.9,2619.7,0.57249]
[1723950603311,0.00023595,2619.9,2619.5,3.2078]
[1723950603312,0.00023595,2619.9,2619.4,3.9342]
[1723950603519,0.00023595,2619.9,2619.4,0.7264]
[1723950603820,0.00023595,2619.9,2619.6,7.84578419]
[1723950604015,0.00023595,2619.9,2619.7,3.2078]
[1723950604208,0.00023595,2619.9,2619.4,1.29896]
[1723950604518,0.00023595,2619.9,2619.6,8.11518889]
[1723950604519,0.57270595,2619.9,2619.6,8.11518889]
[1723950604816,0.57270595,2619.9,2619.4,0.57257]
[1723950604817,0.00023595,2619.9,2619.4,0.57257]
[1723950605022,0.00023595,2619.9,2619.4,0.57256]
[1723950605213,0.00023595,2619.9,2619.5,8.54062319]
[1723950605619,0.00023595,2619.9,2619.5,0.57253]
[1723950606120,0.00023595,2619.9,2619.6,8.12251408]
[1723950608315,0.00023595,2619.9,2619.8,0.57248]
[1723950608716,0.00023595,2619.9,2619.8,8.55873497]
[1723950609515,0.00023595,2619.9,2619.8,7.98625497]
[1723950609822,0.00023595,2619.9,2619.8,8.55873497]
[1723950610419,0.00023595,2619.9,2619.8,9.15645159]
[1723950610824,0.00023595,2619.9,2619.8,12.36425159]
[1723950611026,0.00023595,2619.9,2619.8,13.33492228]
[1723950611924,0.00023595,2619.9,2619.8,12.36425159]
[1723950612128,0.00023595,2619.9,2619.8,11.79177159]
[1723950612341,0.00023595,2619.9,2619.8,11.19405497]
[1723950612525,3.81703595,2619.9,2619.8,11.79178802]
[1723950612722,8.81703595,2619.9,2619.5,0.97067069]
[1723950612923,0.95639,2619.8,2619.6,0.59796228]
[1723950613125,0.57254,2619.6,2619.3,1.37010884]
[1723950613336,0.366,2619.7,2619.4,0.59795921]
[1723950613535,0.57254,2619.6,2619.5,0.59795921]
[1723950614231,0.57254,2619.6,2619.3,8.06894111]
[1723950614746,0.93852,2619.7,2619.3,8.06894111]
[1723950615246,0.00023595,2619.9,2619.6,0.57252]
[1723950615434,0.00023595,2619.9,2619.7,0.94129]
[1723950615634,0.00023595,2619.9,2619.7,8.56042702]
[1723950617035,0.00023595,2619.9,2619.7,9.13291702]
[1723950618030,0.00023595,2619.9,2619.8,4.37811806]
[1723950618221,0.00023595,2619.9,2619.8,13.59250526]
[1723950618625,0.00023595,2619.9,2619.8,15.50120341]
[1723950619429,0.00023595,2619.9,2619.8,15.50110349]
[1723950619631,0.00023595,2619.9,2619.8,13.59240534]
[1723950620628,0.00023595,2619.9,2619.8,15.50106567]
[1723950620837,0.00023595,2619.9,2619.8,23.63024543]
[1723950621024,0.00023595,2619.9,2619.8,25.48502226]
[1723950621222,0.00023595,2619.9,2619.8,25.48489528]
[1723950621430,0.00023595,2619.9,2619.8,25.5132553]
[1723950621626,0.00023595,2619.9,2619.8,24.94075315]
[1723950621826,3.81703595,2619.9,2619.8,9.71669074]
[1723950622031,0.00023595,2619.9,2619.8,9.71669074]
[1723950622431,0.00023595,2619.9,2619.8,8.72690471]
[1723950622624,0.00023595,2619.9,2619.8,9.71669074]
[1723950622825,0.00023595,2619.9,2619.8,11.93470471]
[1723950623240,0.00023595,2619.9,2619.8,12.92449074]
[1723950623461,0.00023595,2619.9,2619.8,12.3267526]
[1723950623642,0.00023595,2619.9,2619.8,12.9245585]
[1723950625330,0.00023595,2619.9,2619.8,11.93477247]
[1723950625640,0.00023595,2619.9,2619.8,9.7167585]
[1723950625936,0.00023595,2619.9,2619.8,11.93477247]
[1723950626637,0.00023595,2619.9,2619.8,8.72697247]
[1723950627539,0.00023595,2619.9,2619.8,9.71691347]
[1723950627728,0.00023595,2619.9,2619.8,8.72712744]
[1723950628139,0.00023595,2619.9,2619.8,8.72711338]
[1723950628341,0.00023595,2619.9,2619.8,9.71689941]
[1723950629439,0.00023595,2619.9,2619.8,12.92469941]
[1723950630139,0.00023595,2619.9,2619.8,9.71689941]
[1723950630329,0.00023595,2619.9,2619.8,8.72711338]
[1723950631535,4.38949595,2619.9,2619.8,8.72711338]
[1723950631739,4.38949595,2619.9,2619.4,3.2078]
[1723950631740,12.58227195,2619.9,2619.4,3.2078]
[1723950631945,0.57255,2619.5,2619.4,3.2078]
[1723950632431,4.39015,2619.5,2619.4,3.2078]
[1723950633144,3.8176,2619.5,2619.4,3.2078]
[1723950637643,3.8176,2619.5,2619.2,3.2078]
[1723950637944,0.57248,2619.8,2619.2,3.2078]
[1723950638343,3.57023595,2619.9,2619.2,3.2078]
[1723950638542,0.57248,2619.8,2619.2,3.2078]
[1723950639541,0.36243595,2619.9,2619.3,0.57258]
[1723950639846,0.36243595,2619.9,2619.4,0.3774]
[1723950640043,0.57248,2619.8,2619.4,0.3774]
[1723950640549,0.57251,2619.7,2619.2,3.2078]
[1723950640741,0.54945532,2619.9,2619.0,0.3774]
[1723950640937,0.57254,2619.6,2619.2,7.80574445]
[1723950641134,0.57255,2619.5,2619.0,4.56671368]
[1723950641342,0.3692,2619.4,2619.0,0.95005]
[1723950641537,0.3692,2619.4,2619.2,3.2078]
[1723950641746,0.3692,2619.4,2619.1,8.48838692]